fUST/lending_fUST_20250627
["ID","MTS","AMOUNT","RATE_DAILY","PERIOD"]
[368050325,1751007052100,-47426.73166746,0.00022,2]
[368050326,1751007052110,-23979.22243832,0.00022,2]
[368050327,1751007052120,-125621.58751722,0.00022,2]
[368050328,1751007052130,-215644.58,0.00022,7]
[368050329,1751007052139,-13737.58,0.00022,7]
[368050330,1751007052149,-165.163626,0.00022,7]
[368050331,1751007052158,-2200.0,0.00022,2]
[368050332,1751007052167,-2014.00755564,0.00022,2]
[368050333,1751007052176,-153.201281,0.00022,7]
[368050334,1751007052185,-151.0,0.00022,7]
[368050335,1751007052195,-151.0,0.00022,7]
[368050336,1751007052204,-152.369318,0.00022,7]
[368050337,1751007052214,-321120.20404991,0.00022,2]
[368050338,1751007052342,-1475.90573475,0.00022,2]
[368050339,1751007052411,-460.0,0.00019178,2]
[368050340,1751007052420,-460.0,0.00019452,2]
[368050341,1751007052429,-297.59979172,0.00020547,2]
[368050342,1751007052448,-162.40020828,0.00020547,2]
[368050343,1751007052458,-157.59979172,0.00020821,2]
[368050344,1751007052470,-302.40020828,0.00020821,2]
[368050345,1751007052480,-16.06681723,0.00021095,2]
[368050346,1751007052721,-460.0,0.00019178,2]
[368050347,1751007052735,-289.58507329,0.00019178,2]
[368050348,1751007052806,-155.19632233,0.00019178,2]
[368050349,1751007052818,-460.0,0.00019178,2]
[368050350,1751007052827,-460.0,0.00019452,2]
[368050351,1751007052836,-460.0,0.00019452,2]
[368050352,1751007052845,-460.0,0.00019726,2]
[368050353,1751007052854,-4.80367767,0.00019726,2]
[368050354,1751007052866,-455.19632233,0.00019726,2]
[368050355,1751007052875,-183.63,0.0002,2]
[368050356,1751007052884,-564.42823004,0.0002,2]
[368050357,1751007052894,-443.93318277,0.00021095,2]
[368050358,1751007052903,-460.0,0.00021369,2]
[368050359,1751007052915,-460.0,0.00021643,2]
[368050360,1751007052924,-1943.62550974,0.000219,2]
[368050361,1751007052934,-460.0,0.00021917,2]
[368050362,1751007052943,-36759.62335114,0.00022,2]
[368050363,1751007052957,-3139.90919649,0.00022,2]
[368050364,1751007052968,-35961.72700703,0.00022,2]
[368050365,1751007053043,-14747.59539366,0.00022,2]
[368050366,1751007161114,-300.0,0.00019177,2]
[368050367,1751007161137,-460.0,0.00019178,2]
[368050368,1751007161159,-460.0,0.00019178,2]
[368050369,1751007161181,-460.0,0.00019178,2]
[368050370,1751007161202,-460.0,0.00019178,2]
[368050371,1751007161224,-460.0,0.00019178,2]
[368050372,1751007161246,-460.0,0.00019178,2]
[368050373,1751007161266,-503.97453082,0.00019178,2]
[368050374,1751007161287,-460.0,0.00019178,2]
[368050375,1751007161309,-460.0,0.00019178,2]
[368050376,1751007161330,-460.0,0.00019178,2]
[368050377,1751007161356,-460.0,0.00019178,2]
[368050378,1751007161378,-460.0,0.00019178,2]
[368050379,1751007161399,-460.0,0.00019178,2]
[368050380,1751007161423,-460.0,0.00019178,2]
[368050381,1751007161446,-460.0,0.00019178,2]
[368050382,1751007161468,-460.0,0.00019178,2]
[368050383,1751007161490,-442.23662174,0.00019178,2]
[368050384,1751007161514,-1568.93,0.00019178,2]
[368050385,1751007161538,-460.0,0.00019178,2]
[368050386,1751007161563,-460.0,0.00019178,2]
[368050387,1751007161585,-296.48581044,0.00019178,2]
[368050388,1751007161606,-460.0,0.00019178,2]
[368050389,1751007161629,-2239.72,0.00019178,2]
[368050390,1751007161651,-460.0,0.00019178,2]
[368050391,1751007161674,-460.0,0.00019178,2]
[368050392,1751007161696,-416.67555031,0.00019178,2]
[368050393,1751007161718,-460.0,0.00019178,2]
[368050394,1751007161741,-1731.88,0.00019178,2]
[368050395,1751007161761,-460.0,0.00019178,2]
[368050396,1751007161782,-460.0,0.00019178,2]
[368050397,1751007161806,-460.0,0.00019178,2]
[368050398,1751007161826,-460.0,0.00019178,2]
[368050399,1751007161850,-460.0,0.00019178,2]
[368050400,1751007161870,-460.0,0.00019178,2]
[368050401,1751007161891,-460.0,0.00019178,2]
[368050402,1751007161912,-499.14,0.00019178,2]
[368050403,1751007161933,-460.0,0.00019178,2]
[368050404,1751007161957,-543.73,0.00019178,2]
[368050405,1751007161983,-460.0,0.00019178,2]
[368050406,1751007162005,-460.0,0.00019178,2]
[368050407,1751007162028,-555.82580844,0.00019178,2]
[368050408,1751007162051,-462.76952307,0.00019178,2]
[368050409,1751007162075,-460.0,0.00019178,2]
[368050410,1751007162096,-460.0,0.00019178,2]
[368050411,1751007162116,-460.0,0.00019178,2]
[368050412,1751007162137,-460.0,0.00019178,2]
[368050413,1751007162160,-460.0,0.00019178,2]
[368050414,1751007162182,-460.0,0.00019178,2]
[368050415,1751007162203,-460.0,0.00019178,2]
[368050416,1751007162224,-430.0,0.00019178,2]
[368050417,1751007162246,-787.44,0.00019178,2]
[368050418,1751007162266,-460.0,0.00019178,2]
[368050419,1751007162287,-460.0,0.00019178,2]
[368050420,1751007162309,-460.0,0.00019178,2]
[368050421,1751007162330,-460.0,0.00019178,2]
[368050422,1751007162352,-460.0,0.00019178,2]
[368050423,1751007162374,-460.0,0.00019178,2]
[368050424,1751007162395,-460.0,0.00019178,2]
[368050425,1751007162416,-463.28717236,0.00019178,2]
[368050426,1751007162436,-448.7304356,0.00019178,2]
[368050427,1751007162460,-1715.82,0.00019178,2]
[368050428,1751007162483,-428.35454722,0.00019178,2]
[368050429,1751007227132,-22688.0,0.00018698,2]
[368050430,1751007300646,-305.7652642,0.00018433,2]
[368050431,1751007300668,-0.2347358,0.00018698,2]
[368050432,1751007345176,160.0,0.00018,2]
[368050433,1751007349245,160.0,0.00018,2]
[368050435,1751007366970,160.0,0.00018,2]
[368050437,1751007461505,160.0,0.00018,3]
[368050438,1751007621648,-19.6914642,0.00018698,2]
[368050439,1751007621670,-500.0,0.00018698,2]
[368050440,1751007621693,-500.0,0.00018698,2]
[368050441,1751007621715,-500.0,0.00018698,2]
[368050442,1751007621738,-500.0,0.00018698,2]
[368050443,1751007621760,-500.0,0.00018698,2]
[368050444,1751007621782,-500.0,0.00018698,2]
[368050445,1751007621804,-500.0,0.00018698,2]
[368050446,1751007621826,-500.0,0.00018698,2]
[368050447,1751007621847,-500.0,0.00018698,2]
[368050448,1751007621869,-344.3085358,0.00018698,2]
[368050450,1751007739265,10000.0,0.00018,2]
[368050451,1751007937162,-99.02786244,0.00018698,2]
[368050452,1751007937184,-333.33633074,0.00019,2]
[368050453,1751007937207,-350.0,0.00019,2]
[368050454,1751007937230,-181.8059766,0.00019074,2]
[368050455,1751007937252,-682.69027625,0.00019078,2]
[368050456,1751007937275,-160.0,0.00019174,2]
[368050457,1751007937299,-553.86642594,0.00019176,2]
[368050458,1751008046322,-471.76649324,0.000189,2]
[368050459,1751008046345,-646.13357406,0.00019176,2]
[368050460,1751008046366,-300.0,0.00019176,2]
[368050461,1751008046387,-300.0,0.00019176,2]
[368050462,1751008046409,-300.0,0.00019176,2]
[368050463,1751008046430,-2642.27877679,0.00019177,2]
[368050481,1751008232146,-314.51099549,0.000189,2]
[368050482,1751008232157,-1200.0,0.00019176,2]
[368050483,1751008232169,-300.0,0.00019176,2]
[368050484,1751008232179,-6507.97354503,0.00019177,2]
[368050485,1751008232192,-3168.54537121,0.00019177,2]
[368050486,1751008232203,-174.08051206,0.00019177,2]
[368050487,1751008232215,-500.0,0.00019177,2]
[368050488,1751008232226,-526.31909194,0.00019177,2]
[368050489,1751008232237,-500.0,0.00019177,2]
[368050490,1751008232247,-160.83707098,0.00019177,2]
[368050491,1751008232258,-500.0,0.00019177,2]
[368050492,1751008232269,-500.0,0.00019177,2]
[368050493,1751008232279,-500.0,0.00019177,2]
[368050494,1751008232290,-500.0,0.00019177,2]
[368050495,1751008232300,-500.0,0.00019177,2]
[368050496,1751008232311,-500.0,0.00019177,2]
[368050497,1751008232322,-500.0,0.00019177,2]
[368050498,1751008232334,-500.0,0.00019177,2]
[368050499,1751008232345,-500.0,0.00019177,2]
[368050500,1751008232357,-500.0,0.00019177,2]
[368050501,1751008232367,-500.0,0.00019177,2]
[368050502,1751008232378,-500.0,0.00019177,2]
[368050503,1751008232389,-494.94890842,0.00019177,2]
[368050504,1751008232400,-574.20977626,0.00019177,2]
[368050505,1751008232410,-500.0,0.00019177,2]
[368050506,1751008232421,-500.0,0.00019177,2]
[368050507,1751008232431,-500.0,0.00019177,2]
[368050508,1751008232442,-500.0,0.00019177,2]
[368050509,1751008232452,-500.0,0.00019177,2]
[368050510,1751008232463,-500.0,0.00019177,2]
[368050511,1751008232473,-500.0,0.00019177,2]
[368050512,1751008232483,-500.0,0.00019177,2]
[368050513,1751008232494,-500.0,0.00019177,2]
[368050514,1751008232505,-500.0,0.00019177,2]
[368050515,1751008232515,-500.0,0.00019177,2]
[368050516,1751008232526,-500.0,0.00019177,2]
[368050517,1751008232536,-500.0,0.00019177,2]
[368050518,1751008232547,-500.0,0.00019177,2]
[368050519,1751008232558,-500.0,0.00019177,2]
[368050520,1751008232568,-500.0,0.00019177,2]
[368050521,1751008232578,-499.99999999,0.00019177,2]
[368050522,1751008232587,-499.99999999,0.00019177,2]
[368050523,1751008232596,-460.0,0.00019178,2]
[368050524,1751008232606,-460.0,0.00019178,2]
[368050525,1751008232615,-598.41627172,0.00019178,2]
[368050526,1751008232624,-460.0,0.00019178,2]
[368050527,1751008232634,-460.0,0.00019178,2]
[368050528,1751008232643,-500.0,0.00019178,2]
[368050529,1751008232652,-460.0,0.00019178,2]
[368050530,1751008232661,-462.42147707,0.00019178,2]
[368050531,1751008232671,-460.0,0.00019178,2]
[368050532,1751008232680,-380.0,0.00019178,2]
[368050533,1751008232690,-460.0,0.00019178,2]
[368050534,1751008232909,-460.0,0.00019178,2]
[368050535,1751008232929,-460.0,0.00019178,2]
[368050536,1751008232939,-460.0,0.00019178,2]
[368050537,1751008232949,-460.0,0.00019178,2]
[368050538,1751008232963,-443.43411108,0.00019178,2]
[368050539,1751008232972,-441.82571624,0.00019178,2]
[368050540,1751008232982,-460.0,0.00019178,2]
[368050541,1751008232991,-151.21395971,0.00019178,2]
[368050542,1751008233002,-205.49316157,0.00019178,2]
[368050543,1751008233011,-460.0,0.00019178,2]
[368050544,1751008233020,-460.0,0.00019178,2]
[368050545,1751008233030,-467.91611147,0.00019178,2]
[368050546,1751008233040,-472.45823068,0.00019178,2]
[368050547,1751008233050,-460.0,0.00019178,2]
[368050548,1751008233059,-460.0,0.00019178,2]
[368050549,1751008233069,-460.0,0.00019178,2]
[368050550,1751008233079,-460.0,0.00019178,2]
[368050551,1751008233089,-460.0,0.00019178,2]
[368050552,1751008233099,-505.87602387,0.00019178,2]
[368050553,1751008233109,-460.0,0.00019178,2]
[368050554,1751008233120,-465.50509404,0.00019178,2]
[368050555,1751008233130,-202.93337349,0.00019178,2]
[368050556,1751008233140,-405.76469308,0.00019178,2]
[368050557,1751008233150,-460.0,0.00019178,2]
[368050558,1751008233160,-460.0,0.00019178,2]
[368050559,1751008233171,-455.0,0.00019178,2]
[368050560,1751008233180,-460.0,0.00019178,2]
[368050561,1751008233189,-447.02606583,0.00019178,2]
[368050562,1751008233199,-460.0,0.00019178,2]
[368050563,1751008233208,-460.0,0.00019178,2]
[368050564,1751008233217,-460.0,0.00019178,2]
[368050565,1751008233227,-460.0,0.00019178,2]
[368050566,1751008233236,-460.0,0.00019178,2]
[368050567,1751008233245,-460.0,0.00019178,2]
[368050568,1751008233255,-522.2697674,0.00019178,2]
[368050569,1751008233264,-549.50347656,0.00019178,2]
[368050570,1751008233273,-378.06780986,0.00019178,2]
[368050571,1751008233283,-460.0,0.00019178,2]
[368050572,1751008233292,-460.0,0.00019178,2]
[368050573,1751008233301,-460.0,0.00019178,2]
[368050574,1751008233311,-559.79089011,0.00019178,2]
[368050575,1751008233320,-460.0,0.00019178,2]
[368050576,1751008233329,-460.0,0.00019178,2]
[368050577,1751008233338,-471.39339694,0.00019178,2]
[368050578,1751008233348,-460.0,0.00019178,2]
[368050579,1751008233358,-460.0,0.00019178,2]
[368050580,1751008233367,-460.0,0.00019178,2]
[368050581,1751008233377,-460.0,0.00019178,2]
[368050582,1751008233386,-358.87891181,0.00019178,2]
[368050583,1751008233395,-460.0,0.00019178,2]
[368050584,1751008233405,-460.0,0.00019178,2]
[368050585,1751008233414,-460.0,0.00019178,2]
[368050586,1751008233424,-460.0,0.00019178,2]
[368050587,1751008233434,-460.0,0.00019178,2]
[368050588,1751008233443,-468.09120899,0.00019178,2]
[368050589,1751008233453,-151.0,0.00019178,2]
[368050590,1751008233463,-460.0,0.00019178,2]
[368050591,1751008233472,-460.0,0.00019178,2]
[368050592,1751008233482,-460.0,0.00019178,2]
[368050593,1751008233491,-460.0,0.00019178,2]
[368050594,1751008233501,-460.0,0.00019178,2]
[368050595,1751008233513,-572.49499452,0.00019178,2]
[368050596,1751008233525,-460.0,0.00019178,2]
[368050597,1751008233535,-460.0,0.00019178,2]
[368050598,1751008233545,-460.0,0.00019178,2]
[368050599,1751008233555,-460.0,0.00019178,2]
[368050600,1751008233565,-415.86743555,0.00019178,2]
[368050601,1751008233575,-430.0,0.00019178,2]
[368050602,1751008233585,-460.0,0.00019178,2]
[368050603,1751008233595,-621.96,0.00019178,2]
[368050604,1751008233604,-460.0,0.00019178,2]
[368050605,1751008233614,-472.03905629,0.00019178,2]
[368050606,1751008233623,-460.0,0.00019178,2]
[368050607,1751008233633,-460.0,0.00019178,2]
[368050608,1751008233642,-460.0,0.00019178,2]
[368050609,1751008233652,-460.0,0.00019178,2]
[368050610,1751008233662,-460.0,0.00019178,2]
[368050611,1751008233671,-463.58995277,0.00019178,2]
[368050612,1751008233681,-460.0,0.00019178,2]
[368050613,1751008233690,-430.0,0.00019178,2]
[368050614,1751008233699,-460.0,0.00019178,2]
[368050615,1751008233709,-460.77768797,0.00019178,2]
[368050616,1751008233718,-558.91,0.00019178,2]
[368050617,1751008233727,-460.0,0.00019178,2]
[368050618,1751008233736,-283.85756455,0.00019178,2]
[368050619,1751008233745,-440.0,0.00019178,2]
[368050620,1751008233755,-460.0,0.00019178,2]
[368050621,1751008233765,-460.0,0.00019178,2]
[368050622,1751008233774,-461.85490041,0.00019178,2]
[368050623,1751008233783,-460.0,0.00019178,2]
[368050624,1751008233793,-460.0,0.00019178,2]
[368050625,1751008233803,-460.0,0.00019178,2]
[368050626,1751008233826,-460.0,0.00019178,2]
[368050627,1751008233835,-460.0,0.00019178,2]
[368050628,1751008233845,-460.0,0.00019178,2]
[368050629,1751008233855,-460.0,0.00019178,2]
[368050630,1751008233864,-460.0,0.00019178,2]
[368050631,1751008233873,-460.0,0.00019178,2]
[368050632,1751008233883,-460.0,0.00019178,2]
[368050633,1751008233892,-460.0,0.00019178,2]
[368050634,1751008233903,-460.0,0.00019178,2]
[368050635,1751008233912,-460.0,0.00019178,2]
[368050636,1751008233921,-460.0,0.00019178,2]
[368050637,1751008233931,-460.0,0.00019178,2]
[368050638,1751008233941,-460.0,0.00019178,2]
[368050639,1751008233951,-460.0,0.00019178,2]
[368050640,1751008233964,-460.0,0.00019178,2]
[368050641,1751008233974,-460.0,0.00019178,2]
[368050642,1751008233984,-460.0,0.00019178,2]
[368050643,1751008233994,-460.0,0.00019178,2]
[368050644,1751008234005,-460.0,0.00019178,2]
[368050645,1751008234015,-461.41,0.00019178,2]
[368050646,1751008234024,-460.0,0.00019178,2]
[368050647,1751008234034,-460.0,0.00019178,2]
[368050648,1751008234043,-460.0,0.00019178,2]
[368050649,1751008234053,-460.0,0.00019178,2]
[368050650,1751008234063,-460.0,0.00019178,2]
[368050651,1751008234073,-460.0,0.00019178,2]
[368050652,1751008234082,-460.0,0.00019178,2]
[368050653,1751008234091,-460.0,0.00019178,2]
[368050654,1751008234101,-460.0,0.00019178,2]
[368050655,1751008234111,-460.0,0.00019178,2]
[368050656,1751008234120,-376.31975991,0.00019178,2]
[368050657,1751008234130,-460.0,0.00019178,2]
[368050658,1751008234139,-184.01595344,0.00019178,2]
[368050659,1751008234149,-460.0,0.00019178,2]
[368050660,1751008234159,-460.0,0.00019178,2]
[368050661,1751008234168,-460.0,0.00019178,2]
[368050662,1751008234178,-460.0,0.00019178,2]
[368050663,1751008234187,-460.0,0.00019178,2]
[368050664,1751008234197,-460.0,0.00019178,2]
[368050665,1751008234206,-460.0,0.00019178,2]
[368050666,1751008234215,-460.0,0.00019178,2]
[368050667,1751008234224,-462.57619362,0.00019178,2]
[368050668,1751008234234,-460.0,0.00019178,2]
[368050669,1751008234243,-460.0,0.00019178,2]
[368050670,1751008234253,-460.0,0.00019178,2]
[368050671,1751008234262,-690.54,0.00019178,2]
[368050672,1751008234272,-460.0,0.00019178,2]
[368050673,1751008234281,-460.0,0.00019178,2]
[368050674,1751008234291,-460.0,0.00019178,2]
[368050675,1751008234300,-460.0,0.00019178,2]
[368050676,1751008234310,-460.0,0.00019178,2]
[368050677,1751008234320,-460.0,0.00019178,2]
[368050678,1751008234329,-460.0,0.00019178,2]
[368050679,1751008234338,-500.0,0.00019178,2]
[368050680,1751008234348,-460.0,0.00019178,2]
[368050681,1751008234357,-460.0,0.00019178,2]
[368050682,1751008234367,-460.0,0.00019178,2]
[368050683,1751008234376,-336.0004877,0.00019178,2]
[368050684,1751008234386,-460.0,0.00019178,2]
[368050685,1751008234396,-460.0,0.00019178,2]
[368050686,1751008234406,-440.0,0.00019178,2]
[368050687,1751008234415,-460.0,0.00019178,2]
[368050688,1751008234424,-460.0,0.00019178,2]
[368050689,1751008234434,-460.0,0.00019178,2]
[368050690,1751008234443,-460.0,0.00019178,2]
[368050691,1751008234453,-460.0,0.00019178,2]
[368050692,1751008234463,-1186.93,0.00019178,2]
[368050693,1751008234472,-465.39677554,0.00019178,2]
[368050694,1751008234482,-460.0,0.00019178,2]
[368050695,1751008234491,-460.0,0.00019178,2]
[368050696,1751008234500,-460.0,0.00019178,2]
[368050697,1751008234510,-460.0,0.00019178,2]
[368050698,1751008234519,-460.0,0.00019178,2]
[368050699,1751008234529,-509.49,0.00019178,2]
[368050700,1751008234539,-460.0,0.00019178,2]
[368050701,1751008234548,-460.0,0.00019178,2]
[368050702,1751008234557,-520.35,0.00019178,2]
[368050703,1751008234566,-460.0,0.00019178,2]
[368050704,1751008234575,-430.0,0.00019178,2]
[368050705,1751008234585,-699.57,0.00019178,2]
[368050706,1751008234595,-460.0,0.00019178,2]
[368050707,1751008234604,-460.0,0.00019178,2]
[368050708,1751008234614,-458.33706449,0.00019178,2]
[368050709,1751008234623,-460.0,0.00019178,2]
[368050710,1751008234632,-1034.45,0.00019178,2]
[368050711,1751008234642,-372.02718125,0.00019178,2]
[368050712,1751008234652,-460.0,0.00019178,2]
[368050713,1751008234661,-460.0,0.00019178,2]
[368050714,1751008234671,-460.0,0.00019178,2]
[368050715,1751008234680,-460.0,0.00019178,2]
[368050716,1751008234689,-1444.96473272,0.00019178,2]
[368050717,1751008234706,-49.39526728,0.00019178,2]
[368050718,1751008234715,-460.0,0.00019178,2]
[368050719,1751008234725,-640.85,0.00019178,2]
[368050720,1751008234735,-460.0,0.00019178,2]
[368050721,1751008234744,-460.0,0.00019178,2]
[368050722,1751008234753,-460.0,0.00019178,2]
[368050723,1751008234763,-2803.5,0.00019178,2]
[368050724,1751008234772,-460.0,0.00019178,2]
[368050725,1751008234781,-460.0,0.00019178,2]
[368050726,1751008234791,-223.31741848,0.00019178,2]
[368050735,1751008238102,-236.68258152,0.00019178,2]
[368050736,1751008238112,-460.0,0.00019178,2]
[368050737,1751008238122,-1923.74,0.00019178,2]
[368050738,1751008238131,-460.0,0.00019178,2]
[368050739,1751008238140,-460.0,0.00019178,2]
[368050740,1751008238150,-460.0,0.00019178,2]
[368050741,1751008238159,-460.0,0.00019178,2]
[368050742,1751008238169,-460.0,0.00019178,2]
[368050743,1751008238178,-2173.5,0.00019178,2]
[368050745,1751008238187,-460.0,0.00019178,2]
[368050746,1751008238196,-460.0,0.00019178,2]
[368050747,1751008238206,-460.0,0.00019178,2]
[368050748,1751008238215,-460.0,0.00019178,2]
[368050749,1751008238224,-614.84,0.00019178,2]
[368050750,1751008238234,-460.0,0.00019178,2]
[368050751,1751008238245,-460.0,0.00019178,2]
[368050752,1751008238255,-460.0,0.00019178,2]
[368050753,1751008238264,-460.0,0.00019178,2]
[368050754,1751008238273,-933.66,0.00019178,2]
[368050755,1751008238282,-460.0,0.00019178,2]
[368050756,1751008238291,-460.0,0.00019178,2]
[368050757,1751008238300,-634.44,0.00019178,2]
[368050758,1751008238310,-460.0,0.00019178,2]
[368050759,1751008238319,-1067.63,0.00019178,2]
[368050760,1751008238328,-512.53,0.00019178,2]
[368050761,1751008238338,-460.0,0.00019178,2]
[368050762,1751008238347,-460.0,0.00019178,2]
[368050763,1751008238356,-1832.69,0.00019178,2]
[368050764,1751008238365,-421.3926114,0.00019178,2]
[368050765,1751008238374,-404.88186531,0.00019178,2]
[368050766,1751008238384,-461.60995275,0.00019178,2]
[368050767,1751008238393,-707.24,0.00019178,2]
[368050768,1751008238403,-460.0,0.00019178,2]
[368050769,1751008238414,-400.04796375,0.00019178,2]
[368050770,1751008238423,-460.0,0.00019178,2]
[368050771,1751008238432,-442.40068567,0.00019178,2]
[368050772,1751008238442,-460.0,0.00019178,2]
[368050773,1751008238451,-640.59,0.00019178,2]
[368050774,1751008238460,-332.28,0.00019178,2]
[368050775,1751008238469,-460.0,0.00019178,2]
[368050776,1751008238479,-460.0,0.00019178,2]
[368050777,1751008238488,-512.38,0.00019178,2]
[368050778,1751008238497,-460.0,0.00019178,2]
[368050779,1751008238507,-460.0,0.00019178,2]
[368050780,1751008238516,-460.0,0.00019178,2]
[368050781,1751008238526,-192.96,0.00019178,2]
[368050782,1751008238535,-460.0,0.00019178,2]
[368050783,1751008238544,-460.0,0.00019178,2]
[368050784,1751008238553,-460.0,0.00019178,2]
[368050785,1751008238563,-1966.54,0.00019178,2]
[368050786,1751008238572,-460.0,0.00019178,2]
[368050787,1751008238581,-4198.63,0.00019178,2]
[368050788,1751008238590,-460.0,0.00019178,2]
[368050789,1751008238600,-2293.22,0.00019178,2]
[368050790,1751008238609,-510.95,0.00019178,2]
[368050791,1751008238619,-460.0,0.00019178,2]
[368050792,1751008238632,-460.0,0.00019178,2]
[368050793,1751008238642,-684.25,0.00019178,2]
[368050794,1751008238651,-460.0,0.00019178,2]
[368050795,1751008238660,-418.16,0.00019178,2]
[368050796,1751008238669,-460.0,0.00019178,2]
[368050797,1751008238678,-430.0,0.00019178,2]
[368050798,1751008238688,-460.0,0.00019178,2]
[368050799,1751008238697,-498.71,0.00019178,2]
[368050800,1751008238827,-596.37,0.00019178,2]
[368050801,1751008238837,-1552.38,0.00019178,2]
[368050802,1751008238846,-1125.61,0.00019178,2]
[368050803,1751008238856,-460.0,0.00019178,2]
[368050804,1751008238865,-460.0,0.00019178,2]
[368050805,1751008238874,-468.62653002,0.00019178,2]
[368050806,1751008238883,-460.0,0.00019178,2]
[368050807,1751008238892,-485.7,0.00019178,2]
[368050808,1751008238903,-460.0,0.00019178,2]
[368050809,1751008238912,-460.0,0.00019178,2]
[368050810,1751008238922,-460.0,0.00019178,2]
[368050811,1751008238931,-1817.3,0.00019178,2]
[368050812,1751008238941,-460.0,0.00019178,2]
[368050813,1751008238951,-587.48,0.00019178,2]
[368050814,1751008238964,-460.0,0.00019178,2]
[368050815,1751008238974,-460.0,0.00019178,2]
[368050816,1751008238984,-460.0,0.00019178,2]
[368050817,1751008238994,-460.0,0.00019178,2]
[368050818,1751008239003,-444.65081181,0.00019178,2]
[368050819,1751008239014,-954.43,0.00019178,2]
[368050820,1751008239024,-460.0,0.00019178,2]
[368050821,1751008239034,-711.74,0.00019178,2]
[368050822,1751008239044,-460.0,0.00019178,2]
[368050823,1751008239054,-460.0,0.00019178,2]
[368050824,1751008239064,-2213.11,0.00019178,2]
[368050825,1751008239076,-151.0,0.00019178,2]
[368050826,1751008239087,-460.0,0.00019178,2]
[368050827,1751008239096,-1589.97,0.00019178,2]
[368050828,1751008239106,-290.14511474,0.00019269,2]
[368050829,1751008239116,-19787.12118898,0.00019329,2]
[368050830,1751008239126,-388.72510198,0.00019352,2]
[368050831,1751008239136,-460.0,0.00019452,2]
[368050832,1751008239145,-460.0,0.00019452,2]
[368050833,1751008239162,-346.74976442,0.00019452,2]
[368050834,1751008239171,-460.0,0.00019452,2]
[368050835,1751008239180,-460.0,0.00019452,2]
[368050836,1751008239189,-467.31011158,0.00019452,2]
[368050837,1751008239199,-460.0,0.00019452,2]
[368050838,1751008239208,-460.0,0.00019452,2]
[368050839,1751008239217,-500.39886976,0.00019452,2]
[368050840,1751008239227,-460.0,0.00019452,2]
[368050841,1751008239236,-460.0,0.00019452,2]
[368050842,1751008239245,-467.51926722,0.00019452,2]
[368050843,1751008239255,-460.0,0.00019452,2]
[368050844,1751008239264,-466.03665853,0.00019452,2]
[368050845,1751008239273,-460.0,0.00019452,2]
[368050846,1751008239282,-460.0,0.00019452,2]
[368050847,1751008239292,-460.0,0.00019452,2]
[368050848,1751008239301,-460.0,0.00019452,2]
[368050849,1751008239310,-166.40303637,0.00019452,2]
[368050850,1751008239319,-460.0,0.00019452,2]
[368050851,1751008239329,-460.0,0.00019452,2]
[368050852,1751008239338,-460.0,0.00019452,2]
[368050853,1751008239347,-153.02830865,0.00019452,2]